bitfinex/quotes_SOLUSD_20240829
["timestamp","ask_amount","ask_price","bid_price","bid_amount"]
[1724939898797,34.78522866,145.87,145.84,6.5216]
[1724939899285,34.78522866,145.87,145.83,16.4613]
[1724939899286,0.12549,145.86,145.83,16.4613]
[1724939899595,41.64162866,145.85,145.8,6.6626]
[1724939900176,34.78522866,145.83,145.8,6.6626]
[1724939900378,45.12549,145.86,145.79,16.3273]
[1724939900579,79.91071866,145.86,145.79,16.3273]
[1724939901190,6.8567,145.85,145.79,16.3273]
[1724939901371,79.91071866,145.86,145.79,16.3273]
[1724939901572,45.12549,145.86,145.79,16.3273]
[1724939901771,79.91071866,145.86,145.79,16.3273]
[1724939902477,34.78522866,145.84,145.79,16.3273]
[1724939902901,34.78522866,145.82,145.79,16.3273]
[1724939903402,45.12549,145.86,145.79,16.3273]
[1724939903606,45.12549,145.86,145.76,6.197]
[1724939903607,34.78522866,145.8,145.76,6.197]
[1724939903772,34.78522866,145.78,145.76,6.197]
[1724939904495,34.78522866,145.8,145.76,6.197]
[1724939904701,34.78522866,145.82,145.76,6.197]
[1724939905971,41.64292866,145.82,145.76,6.197]
[1724939906294,34.78522866,145.82,145.76,6.197]
[1724939906870,34.78522866,145.84,145.76,6.197]
[1724939907772,15.6905,145.91,145.77,1.371641]
[1724939907773,41.64052866,145.88,145.77,1.371641]
[1724939907977,15.6905,145.95,145.79,6.0808]
[1724939908193,15.6905,145.95,145.8,81.74858]
[1724939908194,34.78522866,145.9,145.8,81.74858]
[1724939908574,34.78522866,145.88,145.8,36.4976]
[1724939908798,41.64022866,145.88,145.8,36.4976]
[1724939909298,6.8525,145.94,145.83,15.9343]
[1724939909485,6.8526,145.93,145.84,20.0]
[1724939909795,6.8535,145.91,145.84,20.0]
[1724939909994,6.8535,145.91,145.83,15.9343]
[1724939910308,6.8535,145.91,145.84,20.0]
[1724939910969,6.854,145.9,145.83,15.9343]
[1724939911173,41.63922866,145.9,145.83,15.9343]
[1724939911674,6.8544,145.89,145.83,15.9343]
[1724939912996,34.78522866,145.88,145.83,15.9343]
[1724939913777,6.8545,145.89,145.83,15.9343]
[1724939914292,41.63922866,145.9,145.83,15.9343]
[1724939915001,0.12549,145.89,145.83,15.9343]
[1724939915579,0.12549,145.89,145.82,6.0921]
[1724939915580,34.78522866,145.84,145.82,6.0921]
[1724939916906,41.64202866,145.84,145.82,6.0921]
[1724939917079,41.64202866,145.84,145.79,15.7637]
[1724939917879,6.8573,145.83,145.79,15.7637]
[1724939918080,34.78522866,145.82,145.79,15.7637]
[1724939918797,112.26229,145.89,145.79,15.7637]
[1724939918798,41.64162866,145.85,145.79,15.7637]
[1724939919101,41.64252866,145.83,145.79,15.7637]
[1724939920006,34.78522866,145.83,145.79,15.7637]
[1724939920297,6.8564,145.85,145.79,15.7637]
[1724939920502,41.64132866,145.86,145.79,15.7637]
[1724939921007,6.8565,145.85,145.79,15.7637]
[1724939921505,41.64112866,145.86,145.79,15.7637]
[1724939921881,6.8565,145.85,145.79,15.7637]
[1724939922185,34.78522866,145.86,145.79,15.7637]
[1724939922186,86.76791866,145.84,145.79,15.7637]
[1724939922392,41.64132866,145.86,145.79,15.7637]
[1724939923308,6.8564,145.85,145.79,15.7637]
[1724939923700,41.64112866,145.86,145.79,15.7637]
[1724939924619,34.78522866,145.88,145.79,15.7637]
[1724939925313,34.78522866,145.83,145.79,15.7637]
[1724939925691,41.64252866,145.83,145.79,15.7637]
[1724939926007,6.8578,145.82,145.79,15.7637]
[1724939927313,6.8583,145.81,145.78,6.591]
[1724939927617,6.8591,145.8,145.78,6.591]
[1724939927791,6.8578,145.82,145.78,6.591]
[1724939928606,6.8583,145.81,145.78,6.591]
[1724939928813,6.8587,145.8,145.78,6.591]
[1724939928987,34.78522866,145.81,145.75,16.5507]
[1724939928988,6.8591,145.79,145.75,16.5507]
[1724939930005,6.8597,145.78,145.75,16.5507]
[1724939930511,34.78522866,145.79,145.75,16.5507]
[1724939930898,6.8596,145.78,145.75,16.5507]
[1724939931097,41.64442866,145.79,145.75,16.5507]
[1724939931499,34.78522866,145.79,145.75,16.5507]
[1724939931906,41.64442866,145.79,145.75,16.5507]
[1724939932812,34.78522866,145.77,145.74,6.4813]
[1724939933007,6.8606,145.76,145.71,15.0974]
[1724939933403,34.78522866,145.75,145.71,15.0974]
[1724939934626,41.64542866,145.77,145.71,15.0974]
[1724939934826,34.78522866,145.77,145.71,15.0974]
[1724939936704,34.78522866,145.81,145.71,15.0974]
[1724939936910,41.64372866,145.81,145.72,20.0]
[1724939937119,34.78522866,145.81,145.74,6.5814]
[1724939937406,41.64372866,145.81,145.74,6.5814]
[1724939938424,34.78522866,145.77,145.74,6.5814]
[1724939940305,41.64442866,145.79,145.74,6.5814]
[1724939940527,34.78522866,145.79,145.74,6.5814]
[1724939940918,41.64452866,145.79,145.74,6.5814]
[1724939942023,1.19553514,145.87,145.75,15.8505]
[1724939942210,16.0794,145.95,145.75,15.8505]
[1724939942211,34.78522866,145.89,145.81,6.6639]
[1724939942413,34.78522866,145.89,145.82,15.8505]
[1724939942933,34.78522866,145.89,145.85,6.8563]
[1724939943252,41.64002866,145.89,145.84,6.8566]
[1724939943529,6.8549,145.88,145.84,6.8566]
[1724939944033,34.78522866,145.89,145.82,15.8505]
[1724939944034,41.63982866,145.89,145.82,15.8505]
[1724939944611,45.25098,145.88,145.82,15.8505]
[1724939945311,52.10598,145.88,145.82,15.8505]
[1724939945829,45.25098,145.88,145.82,15.8505]
[1724939946127,6.8555,145.87,145.82,15.8505]
[1724939947029,6.8559,145.86,145.82,15.8505]
[1724939947824,6.8555,145.87,145.82,15.8505]
[1724939948027,6.855,145.88,145.82,15.8505]
[1724939948408,34.78522866,145.91,145.82,17.22194513]
[1724939948613,34.78522866,145.91,145.82,15.8505]
[1724939949832,6.8543,145.9,145.82,15.8505]
[1724939950828,41.63882866,145.91,145.82,15.8505]
[1724939951038,6.8536,145.91,145.82,15.8505]
[1724939951337,6.8541,145.9,145.82,15.8505]
[1724939952418,6.8545,145.89,145.82,15.8505]
[1724939952727,34.78522866,145.91,145.82,15.8505]
[1724939952931,6.8555,145.87,145.82,15.8505]
[1724939953442,6.8548,145.89,145.82,15.8505]
[1724939954619,6.8549,145.88,145.82,15.8505]
[1724939954837,45.25098,145.9,145.82,15.8505]
[1724939955022,6.8563,145.85,145.82,15.8505]
[1724939955228,6.856,145.86,145.82,15.8505]
[1724939955820,45.25098,145.9,145.82,15.8505]
[1724939956023,0.25098,145.9,145.82,15.8505]
[1724939956445,6.8548,145.89,145.82,15.8505]
[1724939958029,6.98049,145.88,145.82,15.8505]
[1724939958227,6.855,145.88,145.82,15.8505]
[1724939958846,6.8545,145.89,145.82,15.8505]
[1724939959525,6.8545,145.89,145.82,17.22186918]
[1724939960018,6.8551,145.88,145.82,15.8505]
[1724939961327,6.8545,145.89,145.82,15.8505]
[1724939962249,51.8539,145.91,145.82,15.8505]
[1724939962749,6.854,145.9,145.82,15.8505]
[1724939962957,6.8531,145.92,145.83,6.6097]
[1724939963117,6.8531,145.92,145.84,21.37101571]
[1724939963623,6.8531,145.92,145.84,20.0]
[1724939963819,34.78522866,145.95,145.85,21.97638]
[1724939964040,6.8526,145.93,145.85,21.97638]
[1724939965844,6.8532,145.92,145.85,21.7254]
[1724939966048,6.8527,145.93,145.85,21.7254]
[1724939966231,6.8521,145.94,145.85,21.7254]
[1724939966423,6.97809,145.93,145.86,21.37097679]
[1724939966626,6.8526,145.93,145.86,21.37097679]
[1724939966845,6.8531,145.92,145.86,21.37097679]
[1724939967050,6.8531,145.92,145.86,20.0]
[1724939967951,34.78522866,145.93,145.85,21.7254]
[1724939968132,45.12549,145.92,145.85,21.7254]
[1724939968637,6.8544,145.9,145.85,21.7254]
[1724939968837,45.12549,145.92,145.85,21.7254]
[1724939969044,6.8535,145.92,145.85,21.7254]
[1724939969431,34.78522866,145.95,145.85,21.7254]
[1724939969631,51.97789,145.94,145.85,21.7254]
[1724939970248,51.97789,145.94,145.86,1.37085672]
[1724939970443,6.97789,145.94,145.86,1.37085672]
[1724939970650,6.97789,145.94,145.85,21.7254]
[1724939970957,6.97789,145.94,145.86,1.3708582]
[1724939971147,0.12549,145.94,145.86,21.3708582]
[1724939971353,6.8513,145.96,145.88,22.5108]
[1724939971528,6.8513,145.96,145.89,1.37064779]
[1724939971843,6.8516,145.95,145.88,22.5108]
[1724939972040,6.8512,145.96,145.88,22.5108]
[1724939972247,6.8517,145.95,145.88,22.5108]
[1724939972850,6.8511,145.96,145.88,22.5108]
[1724939973556,6.8505,145.98,145.88,22.5108]
[1724939973751,0.12549,145.97,145.88,22.5108]
[1724939973932,45.0,145.98,145.88,22.5108]
[1724939974333,34.78522866,145.99,145.88,22.5108]
[1724939974760,6.8507,145.97,145.88,22.5108]
[1724939975059,41.63632866,145.97,145.88,22.5108]
[1724939975357,6.8512,145.96,145.88,22.5108]
[1724939975876,6.8518,145.95,145.88,22.5108]
[1724939976157,0.12549,145.96,145.88,22.5108]
[1724939976359,45.12549,145.96,145.88,22.5108]
[1724939977461,6.8521,145.95,145.88,22.5108]
[1724939977751,6.97769,145.94,145.88,22.5108]
[1724939977951,6.8532,145.92,145.88,22.5108]
[1724939978368,6.854,145.9,145.88,22.5108]
[1724939979140,6.854,145.9,145.81,21.5328]
[1724939979736,6.8545,145.89,145.81,21.5328]
[1724939980055,6.8549,145.88,145.81,21.5328]
[1724939980638,6.8545,145.89,145.81,21.5328]
[1724939980837,6.8556,145.87,145.81,21.5328]
[1724939981053,6.855,145.88,145.81,21.5328]
[1724939981962,34.91071866,145.91,145.81,21.5328]
[1724939981963,34.78522866,145.89,145.81,21.5328]
[1724939982257,6.8554,145.87,145.81,21.5328]
[1724939982559,6.855,145.88,145.81,21.5328]
[1724939983056,6.8555,145.87,145.81,21.5328]
[1724939983861,41.64002866,145.89,145.81,21.5328]
[1724939984161,6.8548,145.89,145.81,21.5328]
[1724939984948,6.855,145.88,145.81,21.5328]
[1724939985137,6.8545,145.89,145.81,21.5328]
[1724939986864,6.8549,145.88,145.81,21.5328]
[1724939987240,6.8555,145.87,145.81,21.5328]
[1724939987761,6.855,145.88,145.81,21.5328]
[1724939987957,6.8555,145.87,145.81,21.5328]
[1724939988169,6.855,145.88,145.81,21.5328]
[1724939988683,41.63982866,145.89,145.81,21.5328]
[1724939988965,34.78522866,145.89,145.81,21.5328]
[1724939989171,45.12549,145.88,145.81,21.5328]
[1724939989561,6.8556,145.87,145.81,21.5328]
[1724939989963,6.856,145.86,145.81,21.5328]
[1724939994171,41.64062866,145.87,145.81,21.5328]
[1724939994373,6.8552,145.88,145.81,21.5328]
[1724939994561,6.8547,145.89,145.81,21.5328]
[1724939995257,6.8549,145.88,145.81,21.5328]
[1724939995973,41.63982866,145.89,145.81,21.5328]
[1724939996361,6.8546,145.89,145.81,21.5328]
[1724939999860,34.78522866,145.91,145.81,21.5328]
[1724940000158,34.78522866,145.93,145.81,21.5328]
[1724940000364,34.78522866,145.93,145.83,6.3046]
[1724940000365,6.8539,145.91,145.83,6.3046]
[1724940000569,15.8583,145.96,145.84,15.5818]
[1724940000798,15.8583,145.96,145.85,0.12549]
[1724940001087,41.63532866,145.99,145.88,15.5818]
[1724940001273,34.78522866,146.01,145.9,6.3046]
[1724940001478,34.78522866,146.01,145.91,20.0]
[1724940001780,41.63542866,145.99,145.91,20.0]
[1724940002159,41.63602866,145.97,145.9,6.3046]
[1724940002364,34.78522866,145.99,145.9,6.3046]
[1724940003084,41.63692866,145.95,145.9,6.3046]
[1724940003289,34.78522866,145.95,145.9,6.3046]
[1724940003457,6.8512,145.96,145.9,6.3046]
[1724940004593,34.91071866,145.97,145.9,6.3046]
[1724940004594,41.76141866,145.97,145.9,6.3046]
[1724940004786,0.12549,145.96,145.9,6.3046]
[1724940005089,6.8502,145.98,145.9,6.3046]
[1724940005267,51.8507,145.97,145.9,6.3046]
[1724940007383,45.0,145.97,145.9,6.3046]
[1724940008188,45.0,145.98,145.9,6.3046]
[1724940008379,0.12549,145.97,145.9,6.3046]
[1724940008908,35.03620866,145.97,145.9,6.3046]
[1724940009193,41.63822866,145.93,145.9,6.3046]
[1724940009367,34.78522866,145.95,145.9,6.3046]
[1724940009568,52.10308,145.94,145.9,6.3046]
[1724940009880,34.78522866,145.91,145.85,6.336]
[1724940010082,34.78522866,145.89,145.84,16.0427]
[1724940010286,0.12549,145.9,145.84,16.0427]
[1724940010491,6.8548,145.89,145.84,16.0427]
[1724940010991,34.78522866,145.9,145.84,16.0427]
[1724940011170,41.63822866,145.92,145.84,16.0427]
[1724940011371,34.78522866,145.92,145.84,16.0427]
[1724940011680,41.63822866,145.92,145.84,16.0427]
[1724940012082,34.78522866,145.92,145.84,16.0427]
[1724940012289,0.12549,145.93,145.84,16.0427]
[1724940012477,0.12549,145.92,145.84,16.0427]
[1724940012678,7.10438,145.92,145.84,16.0427]
[1724940012894,6.8535,145.91,145.84,16.0427]
[1724940013196,7.10438,145.92,145.84,16.0427]
[1724940013398,45.0,145.91,145.84,16.0427]
[1724940013699,51.8536,145.91,145.84,16.0427]
[1724940013992,0.12549,145.9,145.84,16.0427]
[1724940014375,0.25098,145.9,145.84,16.0427]
[1724940015185,7.10508,145.9,145.84,16.0427]
[1724940016017,51.8544,145.89,145.84,16.0427]
[1724940016318,0.25098,145.9,145.84,16.0427]
[1724940016896,7.10498,145.9,145.84,16.0427]
[1724940017093,6.855,145.88,145.84,16.0427]
[1724940017292,6.8545,145.89,145.84,16.0427]
[1724940017800,6.855,145.88,145.84,16.0427]
[1724940018001,80.03620866,145.87,145.82,6.1032]
[1724940018198,51.8559,145.86,145.82,6.1032]
[1724940018389,51.98139,145.86,145.82,6.1032]
[1724940018590,34.91071866,145.87,145.82,6.1032]
[1724940018817,66.0512,145.92,145.82,6.1032]
[1724940018818,41.63982866,145.89,145.82,6.1032]
[1724940019008,6.97949,145.9,145.82,6.1032]
[1724940019203,6.854,145.9,145.82,6.1032]
[1724940019521,34.78522866,145.91,145.82,6.1032]
[1724940019522,6.8536,145.91,145.82,6.1032]
[1724940020020,6.854,145.9,145.82,6.1032]
[1724940020200,6.8531,145.92,145.82,6.1032]
[1724940020518,34.78522866,145.93,145.82,6.1032]
[1724940021192,6.8535,145.91,145.82,6.1032]
[1724940021715,45.0,145.92,145.82,6.1032]
[1724940021716,51.8531,145.92,145.82,6.1032]
[1724940021918,6.97939,145.91,145.83,20.0]
[1724940022518,0.12549,145.91,145.83,20.0]
[1724940022834,6.8531,145.92,145.84,15.5953]
[1724940023600,34.78522866,145.95,145.84,15.5953]
[1724940023813,34.78522866,145.95,145.85,6.2022]
[1724940024118,34.78522866,145.97,145.85,6.2022]
[1724940024324,6.8517,145.95,145.85,6.2022]
[1724940024621,34.78522866,145.98,145.87,15.6425]
[1724940024796,6.8511,145.97,145.88,6.2086]
[1724940025004,34.78522866,145.96,145.88,6.2086]
[1724940025201,6.8529,145.93,145.88,6.2086]
[1724940025709,34.78522866,145.94,145.88,6.2086]
[1724940025909,45.12549,145.93,145.88,6.2086]
[1724940026103,41.76411866,145.92,145.88,6.2086]
[1724940026310,45.12549,145.91,145.88,6.2086]
[1724940026923,45.12549,145.91,145.87,15.6425]
[1724940027122,41.76481866,145.9,145.87,15.6425]
[1724940027326,45.12549,145.89,145.87,15.6425]
[1724940027620,34.78522866,145.9,145.87,15.6425]
[1724940027921,51.8545,145.89,145.84,6.0845]
[1724940028131,45.0,145.89,145.84,6.0845]
[1724940028701,34.78522866,145.9,145.84,6.0845]
[1724940028928,6.8541,145.9,145.84,6.0845]
[1724940029130,45.0,145.89,145.84,6.0845]
[1724940029324,45.0,145.9,145.84,6.0845]
[1724940029711,41.64022866,145.88,145.84,6.0845]
[1724940029914,51.8555,145.87,145.84,6.0845]
[1724940030135,45.0,145.87,145.84,6.0845]
[1724940030303,34.78522866,145.88,145.84,6.0845]
[1724940030509,6.97999,145.89,145.84,6.0845]
[1724940030807,45.0,145.88,145.84,6.0845]
[1724940031203,6.8539,145.91,145.84,6.0845]
[1724940031504,6.8527,145.93,145.84,6.0845]
[1724940033128,6.8532,145.92,145.84,6.0845]
[1724940033424,6.8531,145.92,145.84,6.0845]
[1724940034025,45.0,145.91,145.84,6.0845]
[1724940034408,44.91956216,145.91,145.84,6.0845]
[1724940035027,41.76341866,145.93,145.84,6.0845]
[1724940035327,34.78522866,145.91,145.84,6.0845]
[1724940036429,6.8541,145.9,145.84,6.0845]
[1724940036927,41.63882866,145.91,145.84,6.0845]
[1724940037222,34.78522866,145.91,145.84,6.0845]
[1724940037427,41.63782866,145.93,145.84,6.0845]
[1724940037615,41.63782866,145.93,145.85,15.5345]
[1724940037998,34.78522866,145.93,145.85,15.5345]
[1724940038623,41.63782866,145.93,145.85,15.5345]
[1724940038809,51.8531,145.92,145.85,15.5345]
[1724940039309,45.0,145.92,145.85,15.5345]
[1724940040125,6.8541,145.9,145.85,15.5345]
[1724940040327,41.76431866,145.91,145.85,15.5345]
[1724940040501,45.0,145.9,145.85,15.5345]
[1724940040708,6.8549,145.88,145.84,6.0845]
[1724940040920,34.78522866,145.89,145.84,6.0845]
[1724940040921,34.78522866,145.87,145.84,6.0845]
[1724940041105,45.0,145.86,145.84,6.0845]
[1724940041303,34.78522866,145.87,145.84,3.0845]
[1724940041527,34.78522866,145.89,145.84,3.0845]
[1724940041828,45.0,145.88,145.84,3.0845]
[1724940042024,34.78522866,145.89,145.84,3.0845]
[1724940042727,45.0,145.88,145.84,3.0845]
[1724940042925,51.8551,145.88,145.84,3.0845]
[1724940043224,0.25098,145.87,145.84,3.0845]
[1724940043630,41.89160866,145.87,145.81,22.98443979]
[1724940043829,45.0,145.86,145.81,22.98443979]
[1724940044026,34.78522866,145.87,145.81,22.98443979]
[1724940044336,45.0,145.86,145.81,29.20203979]
[1724940044711,41.63972866,145.89,145.81,29.20203979]
[1724940045013,45.12549,145.88,145.81,29.20203979]
[1724940046129,41.64072866,145.87,145.81,29.20203979]
[1724940046324,45.12549,145.86,145.81,29.20203979]
[1724940046507,45.0,145.86,145.81,29.20203979]
[1724940046909,6.8568,145.84,145.81,29.20203979]
[1724940047130,45.12549,145.83,145.78,22.6211]
[1724940047938,34.78522866,145.79,145.75,7.17283889]
[1724940048112,41.64442866,145.79,145.74,28.8291]
[1724940048313,41.64442866,145.79,145.74,21.9676]
[1724940048314,45.12549,145.78,145.74,21.9676]
[1724940048541,51.98519,145.78,145.74,21.9676]
[1724940048712,6.8602,145.77,145.74,21.9676]
[1724940048913,45.0,145.76,145.71,23.79768387]
[1724940049132,45.12549,145.76,145.72,6.8622]
[1724940049334,45.0,145.77,145.71,16.6219]
[1724940049833,41.64482866,145.78,145.73,6.862]
[1724940050024,34.78522866,145.78,145.74,6.8615]
[1724940050351,34.78522866,145.78,145.71,16.6219]
[1724940050638,34.78522866,145.8,145.75,6.8608]
[1724940050810,34.78522866,145.8,145.75,6.8609]
[1724940051007,6.8582,145.81,145.71,16.6219]
[1724940051008,34.78522866,145.78,145.71,16.6219]
[1724940051207,34.78522866,145.76,145.71,16.6219]
[1724940051638,34.78522866,145.72,145.68,7.17497277]
[1724940051818,41.64902866,145.69,145.68,7.17497277]
[1724940052027,41.64902866,145.69,145.64,6.8659]
[1724940052028,34.78522866,145.69,145.64,6.8659]
[1724940052316,6.862,145.73,145.67,6.8648]
[1724940052525,45.0,145.72,145.67,6.8648]
[1724940052719,45.0,145.72,145.68,6.8643]
[1724940052932,34.78522866,145.74,145.68,6.8643]
[1724940052933,51.8622,145.73,145.68,6.8643]
[1724940053326,34.78522866,145.71,145.67,6.8646]
[1724940053537,45.0,145.7,145.67,6.8646]
[1724940053918,45.0,145.7,145.63,16.3833]
[1724940054119,0.12549,145.69,145.65,6.8657]
[1724940054421,45.0,145.7,145.67,6.8646]
[1724940054626,45.0,145.7,145.63,16.3833]
[1724940054627,0.12549,145.72,145.64,1.37302424]
[1724940054823,45.12549,145.72,145.64,1.37302424]
[1724940055035,45.12549,145.72,145.63,16.3833]
[1724940055344,45.0,145.72,145.63,16.3833]
[1724940055638,45.0,145.72,145.69,6.8638]
[1724940055870,41.64682866,145.74,145.69,6.8638]
[1724940056622,41.64682866,145.74,145.68,6.8642]
[1724940056825,6.8616,145.74,145.69,6.8637]
[1724940057043,6.8616,145.74,145.69,13.5228]
[1724940057344,45.0,145.73,145.69,13.5228]
[1724940057723,45.0,145.73,145.7,6.8633]
[1724940057924,51.8615,145.74,145.69,13.5229]
[1724940058437,0.12549,145.73,145.69,13.5229]
[1724940058628,45.0,145.74,145.69,6.6591]
[1724940058832,41.64562866,145.77,145.72,6.862]
[1724940059930,34.78522866,145.75,145.7,15.4016]
[1724940060238,34.78522866,145.73,145.7,15.4016]
[1724940060643,41.64622866,145.75,145.7,22.2646]
[1724940060944,34.78522866,145.75,145.7,15.4016]
[1724940061131,45.0,145.74,145.7,15.4016]
[1724940061521,34.78522866,145.73,145.69,6.6591]
[1724940061839,51.8627,145.72,145.69,6.6591]
[1724940062023,41.89910866,145.71,145.67,6.8645]
[1724940062228,45.0,145.7,145.68,6.8642]
[1724940062527,45.0,145.7,145.66,15.0185]
[1724940062741,34.78522866,145.69,145.66,15.0185]
[1724940062932,34.78522866,145.69,145.65,13.1338]
[1724940062933,6.8646,145.68,145.65,6.2685]
[1724940063138,52.11558,145.68,145.65,6.2685]
[1724940063359,34.78522866,145.67,145.63,6.8665]
[1724940063841,34.78522866,145.67,145.62,22.2015]
[1724940064041,52.11658,145.66,145.62,22.2015]
[1724940064432,6.8658,145.65,145.62,22.2015]
[1724940064758,51.8653,145.66,145.62,22.2015]
[1724940064922,6.8658,145.65,145.62,22.2015]
[1724940065124,45.0,145.64,145.62,22.2015]
[1724940065323,34.78522866,145.67,145.62,22.2015]
[1724940065525,45.25098,145.66,145.62,22.2015]
[1724940065747,52.11668,145.66,145.62,22.2015]
[1724940065943,34.78522866,145.65,145.58,21.7211]
[1724940066145,51.8666,145.64,145.59,6.8684]
[1724940066928,45.0,145.64,145.6,6.8681]
[1724940067245,45.0,145.64,145.58,21.7211]
[1724940067246,0.12549,145.63,145.58,21.7211]
[1724940067558,41.90300866,145.63,145.58,28.59]
[1724940067845,45.0,145.62,145.58,28.59]
[1724940068240,6.8664,145.64,145.58,21.7211]
[1724940068437,45.0,145.63,145.59,6.8685]
[1724940068629,41.65192866,145.63,145.58,21.7211]
[1724940069244,41.65192866,145.63,145.59,6.8685]
[1724940069245,34.78522866,145.63,145.59,6.8685]
[1724940069646,34.78522866,145.61,145.58,6.4152]
[1724940069961,34.78522866,145.59,145.51,6.377]
[1724940070254,34.78522866,145.57,145.53,6.8712]
[1724940071225,34.78522866,145.57,145.54,6.8709]
[1724940071433,41.65412866,145.59,145.54,6.8709]
[1724940071625,45.0,145.58,145.54,6.8709]
[1724940072134,6.8696,145.57,145.52,6.8718]
[1724940072343,41.65482866,145.57,145.53,6.8713]
[1724940072529,51.8691,145.58,145.53,6.8713]
[1724940072845,6.8698,145.57,145.52,22.0163]
[1724940073049,45.12549,145.56,145.52,22.0163]
[1724940073245,45.0,145.56,145.52,22.0163]
[1724940074066,51.8701,145.56,145.52,22.0163]
[1724940074548,51.87,145.56,145.52,22.0163]
[1724940074753,45.0,145.56,145.53,6.8714]
[1724940075259,45.0,145.56,145.52,22.0163]
[1724940075439,45.0,145.56,145.53,6.8713]
[1724940075640,34.78522866,145.55,145.51,6.377]
[1724940075952,34.78522866,145.53,145.49,15.7149]
[1724940076149,41.65672866,145.53,145.49,22.5881]
[1724940076343,45.0,145.52,145.49,22.5881]
[1724940077136,34.78522866,145.55,145.49,15.7149]
[1724940077572,34.78522866,145.57,145.52,6.8718]
[1724940077851,45.0,145.56,145.49,15.7149]
[1724940078059,41.65612866,145.55,145.51,6.8723]
[1724940078447,34.78522866,145.55,145.51,6.8723]
[1724940078858,34.78522866,145.55,145.52,6.8717]
[1724940081059,34.78522866,145.57,145.49,15.7149]
[1724940081444,6.87,145.56,145.52,6.8717]
[1724940081638,6.87,145.56,145.49,15.7149]
[1724940081946,6.87,145.56,145.51,6.8719]
[1724940082143,41.65482866,145.57,145.52,6.8717]
[1724940082549,45.25098,145.56,145.53,6.8712]
[1724940083263,52.12098,145.56,145.49,15.7149]
[1724940083466,41.65582866,145.55,145.49,15.7149]
[1724940083669,41.65672866,145.53,145.48,13.2721]
[1724940083964,34.78522866,145.49,145.46,6.8747]
[1724940085153,6.8728,145.51,145.46,6.8747]
[1724940085338,45.0,145.5,145.46,6.8747]
[1724940085538,34.78522866,145.55,145.44,41.05662866]
[1724940085738,45.0,145.54,145.44,41.05662866]
[1724940085933,51.871,145.54,145.49,6.8731]
[1724940086238,45.0,145.54,145.5,6.8727]
[1724940086634,45.0,145.54,145.44,41.05662866]
[1724940086635,45.0,145.54,145.51,6.8721]
[1724940086860,45.0,145.54,145.45,1.37463137]
[1724940086861,45.0,145.54,145.5,6.8728]
[1724940087242,45.0,145.54,145.49,6.8732]
[1724940087762,45.0,145.54,145.5,6.8727]
[1724940088343,51.95722866,145.59,145.52,6.8718]
[1724940088558,6.8696,145.57,145.52,6.8718]
[1724940088744,45.0,145.56,145.52,6.8718]
[1724940088943,51.87,145.56,145.52,6.8718]
[1724940089366,45.0,145.56,145.52,6.8718]
[1724940089671,6.8694,145.58,145.53,6.871]
[1724940090652,16.0886,145.61,145.55,6.8704]
[1724940090653,6.8685,145.6,145.55,6.8704]
[1724940090959,6.8689,145.59,145.54,6.8708]
[1724940091264,16.0886,145.61,145.51,6.5528]
[1724940091453,50.87382866,145.61,145.51,6.5528]
[1724940091654,6.8686,145.59,145.51,6.5528]
[1724940092155,0.12549,145.58,145.55,6.8704]
[1724940092354,0.12549,145.59,145.55,6.8704]
[1724940092765,0.25098,145.59,145.55,6.8704]
[1724940093450,7.11958,145.59,145.54,6.8709]
[1724940093771,45.0,145.58,145.54,6.8709]
[1724940093977,0.12549,145.57,145.53,6.8713]
[1724940094147,6.99499,145.57,145.54,0.07738798]
[1724940094348,45.0,145.56,145.54,0.07738798]